fUSD/lending_fUSD_20260416
["ID","MTS","AMOUNT","RATE_DAILY","PERIOD"]
[420607815,1776322286906,5000.01,8.209e-05,2]
[420607816,1776322286931,12218.79022158,8.209e-05,2]
[420607817,1776322286956,208551.96267842,8.209e-05,2]
[420607819,1776322313812,5000.01,8.209e-05,2]
[420607820,1776322313836,5000.01,8.209e-05,2]
[420607821,1776322313861,8438.618,8.209e-05,2]
[420607822,1776322328965,1419.0,8.209e-05,3]
[420607823,1776322338468,565.3481,8.209e-05,2]
[420607825,1776322357671,150.0,0.00013108,30]
[420607826,1776322358020,150.0,0.00013908,30]
[420607827,1776322360453,150.0,0.00014708,30]
[420607828,1776322539692,152.0,9.34e-05,30]
[420607829,1776322540617,152.0,0.00010481,30]
[420607830,1776322684003,509.02130078,0.000165,30]
[420607831,1776322696639,4434.6619,8e-05,2]
[420607832,1776322696663,5000.01,8e-05,2]
[420607833,1776322696687,14321.36975128,8e-05,2]
[420607834,1776322729898,2891.95,8.3e-05,2]
[420607836,1776322831309,394.39676588,7.888e-05,2]
[420607837,1776322838205,152.0,9.08e-05,30]
[420607838,1776322839628,152.0,9.885e-05,30]
[420607842,1776322892569,-150.0,0.00045051,3]
[420607843,1776323091737,-300.0,8.811e-05,2]
[420607844,1776323091761,-200.0,8.811e-05,2]
[420607853,1776323431995,-152.0,8.647e-05,7]
[420607854,1776323432005,-500.0,8.793e-05,2]
[420607855,1776323432015,-150.0,8.81e-05,2]
[420607856,1776323432025,-259.0,8.81e-05,2]
[420607857,1776323432034,-1200.0,8.81e-05,2]
[420607858,1776323432043,-6439.0,8.811e-05,2]
[420607859,1776323432104,-106916.29875205,8.811e-05,2]
[420607860,1776323432117,-44736.71709037,8.811e-05,2]
[420607861,1776323432131,-30287.49281671,8.811e-05,2]
[420607862,1776323432144,-8820.3319444,8.811e-05,2]
[420607870,1776323432903,-282.203794,8.811e-05,2]
[420607872,1776323439283,-3404.56,8.811e-05,2]
[420607873,1776323439653,-2600.29213378,8.811e-05,2]
[420607874,1776323439665,-860.55186502,8.811e-05,2]
[420607915,1776323440366,-851.39961455,8.811e-05,2]
[420607918,1776323440378,-882.02429316,8.811e-05,2]
[420607920,1776323440389,-2365.275,8.811e-05,2]
[420607922,1776323440401,-2511.0,8.811e-05,2]
[420607924,1776323440413,-1844.09,8.811e-05,2]
[420607927,1776323440424,-2604.75941191,8.811e-05,2]
[420608006,1776323445355,-0.1200216,8.81e-05,2]
[420608007,1776323445441,-499.8799784,8.81e-05,2]
[420608008,1776323445451,-176.1649148,8.81e-05,2]
[420608009,1776323445461,-293350.86217737,8.811e-05,2]
[420608010,1776323445471,-372.75099703,8.811e-05,2]
[420608011,1776323445481,-14912.97,8.812e-05,2]
[420608012,1776323445493,-152.0,8.813e-05,7]
[420608013,1776323445503,-165.46,8.874e-05,2]
[420608014,1776323445513,-500.0,8.929e-05,2]
[420608015,1776323445522,-2480.67,9.138e-05,2]
[420608016,1776323445532,-166.44,9.57e-05,2]
[420608017,1776323445541,-255.0,9.691e-05,2]
[420608018,1776323445551,-9999.99,9.822e-05,2]
[420608019,1776323445561,-2119.37,9.822e-05,2]
[420608020,1776323445571,-209.40437684,9.875e-05,2]
[420608021,1776323445580,-500.0,9.88e-05,2]
[420608022,1776323445589,-500.0,9.88e-05,2]
[420608023,1776323445599,-390.1726311,9.88e-05,2]
[420608024,1776323445608,-500.0,9.88e-05,2]
[420608025,1776323445617,-213.08530992,9.88e-05,2]
[420608026,1776323445627,-79374.50330553,9.881e-05,2]
[420608027,1776323445639,-9999.99,9.881e-05,2]
[420608028,1776323445649,-150.99,9.881e-05,2]
[420608029,1776323445660,-9999.99,9.881e-05,2]
[420608030,1776323445670,-299.99,9.881e-05,2]
[420608031,1776323445681,-999.99,9.881e-05,2]
[420608032,1776323445692,-9999.99,9.881e-05,2]
[420608033,1776323445702,-919.65012201,9.882e-05,2]
[420608034,1776323445712,-500.0,9.89e-05,2]
[420608035,1776323445721,-31432.08619148,9.894e-05,2]
[420608036,1776323445731,-152.0,9.896e-05,7]
[420608037,1776323445741,-1421.0,9.985e-05,5]
[420608038,1776323445751,-210.0,9.989e-05,2]
[420608039,1776323445761,-3777.0,0.00010099,2]
[420608040,1776323445772,-2473.0,0.00010099,2]
[420608041,1776323445782,-6028.0,0.00010099,2]
[420608048,1776323446341,-2500.0,0.00010275,2]
[420608049,1776323446384,-2526.847,0.000103,2]
[420608050,1776323446394,-185.738,0.000103,2]
[420608051,1776323446405,-150.0,0.00010373,2]
[420608052,1776323446415,-500.0,0.00010373,2]
[420608053,1776323446425,-150.0,0.00010373,2]
[420608054,1776323446435,-500.0,0.00010373,2]
[420608055,1776323446445,-200.0,0.00010373,2]
[420608056,1776323446455,-500.0,0.00010373,2]
[420608057,1776323446466,-500.0,0.00010373,2]
[420608058,1776323446475,-500.0,0.00010373,2]
[420608059,1776323446485,-500.0,0.00010373,2]
[420608060,1776323446495,-500.0,0.00010373,2]
[420608061,1776323446505,-500.0,0.00010373,2]
[420608062,1776323446515,-307.33888934,0.00010373,2]
[420608063,1776323446527,-150.0,0.00010373,2]
[420608064,1776323446536,-150.0,0.000104,2]
[420608065,1776323446546,-1116.0,0.00010402,2]
[420608066,1776323446556,-250.0,0.00010402,2]
[420608067,1776323446565,-124423.99,0.00010524,2]
[420608068,1776323446575,-270.75280691,0.00010647,2]
[420608069,1776323446584,-500.0,0.00010647,2]
[420608070,1776323446593,-160.56234054,0.00010658,2]
[420608071,1776323446603,-218.35,0.00010722,2]
[420608072,1776323446613,-160.0,0.00010753,2]
[420608073,1776323446623,-169700.6181,0.000108,2]
[420608075,1776323446632,-368.49999571,0.000109,2]
[420608077,1776323446641,-368.49999564,0.000109,2]
[420608079,1776323446651,-368.49999564,0.000109,2]
[420608081,1776323446660,-368.49999564,0.000109,2]
[420608083,1776323446669,-500.0,0.00010921,2]
[420608085,1776323446679,-795.33504831,0.00010921,2]
[420608087,1776323446689,-1116.0,0.0001095,2]
[420608089,1776323446698,-368.49999564,0.00010992,2]
[420608091,1776323446708,-165.46,0.00011092,2]
[420608092,1776323446717,-307.07535557,0.00011099,2]
[420608093,1776323446732,-307.0753555,0.00011099,2]
[420608094,1776323446742,-307.0753555,0.00011099,2]
[420608095,1776323446752,-307.0753555,0.00011145,2]
[420608096,1776323446761,-166.44,0.00011149,2]
[420608097,1776323446771,-2003.91112127,0.00011227,2]
[420608098,1776323446781,-307.0753555,0.00011271,2]
[420608099,1776323446791,-2060.39,0.00011281,2]
[420608100,1776323446801,-368.49999564,0.00011295,2]
[420608101,1776323446811,-307.0753555,0.00011396,2]
[420608102,1776323446821,-668.55014493,0.00011422,2]
[420608103,1776323446831,-250.0,0.00011426,2]
[420608104,1776323446840,-462.25,0.00011506,2]
[420608105,1776323446852,-307.0753555,0.00011522,2]
[420608106,1776323446862,-1116.0,0.00011526,2]
[420608107,1776323446872,-368.49999564,0.00011597,2]
[420608108,1776323446882,-307.0753555,0.00011648,2]
[420608109,1776323446892,-150.0,0.00011659,2]
[420608110,1776323446902,-157.69632005,0.00011659,2]
[420608111,1776323446911,-150.0,0.00011659,2]
[420608112,1776323446921,-200.0,0.00011659,2]
[420608113,1776323446930,-150.0,0.00011659,2]
[420608114,1776323446940,-150.0,0.00011659,2]
[420608115,1776323446950,-150.05758755,0.00011659,2]
[420608116,1776323446960,-150.0,0.00011659,2]
[420608117,1776323446969,-150.0,0.00011659,2]
[420608118,1776323446979,-201.07430715,0.00011659,2]
[420608119,1776323446989,-300.0,0.00011699,2]
[420608120,1776323446999,-1138.0,0.000117,5]
[420608121,1776323447008,-191.2931,0.000117,2]
[420608122,1776323447018,-596372.91932951,0.000117,2]
[420608123,1776323450172,-115270.62762979,0.000117,2]
[420608124,1776323450249,-517.71492331,0.000117,2]
[420608127,1776323589733,1000.0,0.000165,30]
[420608130,1776323762124,65369.74,0.000165,120]
[420608133,1776323946420,10000.0,8.509e-05,2]
[420608134,1776323975471,10000.0,0.000165,30]
[420608135,1776323983580,10000.0,8.3e-05,2]
[420608136,1776323993258,0.01,8.3e-05,2]
[420608139,1776324007107,1371.0,8.3e-05,3]
[420608140,1776324007414,157.0,8.3e-05,3]
[420608141,1776324012952,10000.0,8.3e-05,2]
[420608142,1776324013292,160.0,8.3e-05,3]
[420608143,1776324021774,10000.0,8.3e-05,2]
[420608144,1776324045636,8520.9,8.3e-05,2]
[420608145,1776324057624,325.88726387,9.021e-05,30]
[420608146,1776324066511,-3775.89557298,8.3e-05,2]
[420608147,1776324070359,-5000.01,8.3e-05,2]
[420608148,1776324070373,-1224.08442702,8.3e-05,2]
[420608149,1776324128336,1303.0,8.3e-05,3]
[420608150,1776324135725,160.0,8.3e-05,3]
[420608151,1776324187878,161.0,8.3e-05,3]
[420608152,1776324190523,178.0,8.3e-05,3]
[420608154,1776324251474,1238.0,8.3e-05,3]
[420608155,1776324255121,161.0,8.3e-05,3]
[420608156,1776324311602,1176.0,8.3e-05,3]
[420608157,1776324318574,161.0,8.3e-05,3]
[420608158,1776324425496,1117.0,8.3e-05,3]
[420608159,1776324432155,161.0,8.3e-05,3]
[420608160,1776324499575,1061.0,8.3e-05,3]
[420608161,1776324500882,178.0,8.3e-05,3]
[420608162,1776324509723,161.0,8.3e-05,3]
[420608163,1776324604624,451.0,3.005e-05,2]
[420608164,1776324604934,451.0,4.287e-05,3]
[420608165,1776324605528,451.0,5.571e-05,3]
[420608166,1776324605864,969.01,8.3e-05,3]
[420608167,1776324605888,38.99,8.3e-05,3]
[420608168,1776324605967,451.0,6.855e-05,3]
[420608169,1776324606226,451.0,8.139e-05,3]
[420608170,1776324613338,157.0,8.3e-05,3]
[420608177,1776324632328,-482.6128,8.547e-05,2]
[420608178,1776324632337,-1249.35,8.614e-05,2]
[420608179,1776324632348,-300.0,8.777e-05,2]
[420608180,1776324632358,-240.6060642,8.778e-05,2]
[420608181,1776324632367,-150.0,8.778e-05,2]
[420608182,1776324632377,-150.0,8.778e-05,2]
[420608183,1776324632386,-150.0,8.778e-05,2]
[420608184,1776324632396,-150.0,8.778e-05,2]
[420608185,1776324632405,-150.0,8.778e-05,2]
[420608186,1776324632414,-150.0,8.778e-05,2]
[420608187,1776324632424,-150.0,8.778e-05,2]
[420608188,1776324632433,-150.0,8.778e-05,2]
[420608189,1776324632443,-150.0,8.778e-05,2]
[420608190,1776324632452,-1008.0,9.021e-05,3]
[420608191,1776324632462,-150.0,9.022e-05,2]
[420608192,1776324632471,-157.0,9.156e-05,3]
[420608193,1776324632480,-150.0,9.191e-05,2]
[420608194,1776324632490,-255.431314,9.192e-05,2]
[420608195,1776324632499,-1600.0,9.226e-05,2]
[420608196,1776324632509,-150.0,9.266e-05,2]
[420608197,1776324632518,-150.0,9.266e-05,2]
[420608198,1776324632527,-3089.79864918,9.402e-05,2]
[420608199,1776324632547,-674.06681493,9.402e-05,2]
[420608200,1776324632558,-501.55199785,9.402e-05,2]
[420608201,1776324632569,-339.75260614,9.402e-05,2]
[420608202,1776324632585,-394.8299319,9.402e-05,2]
[420608203,1776324632595,-154.0567881,9.421e-05,2]
[420608204,1776324632606,-424.15245498,9.421e-05,2]
[420608205,1776324632615,-209.40437684,9.421e-05,2]
[420608206,1776324632625,-500.0,9.421e-05,2]
[420608207,1776324632634,-451.0,9.422e-05,3]
[420608208,1776324632644,-500.0,9.476e-05,2]
[420608209,1776324632653,-6028.0,9.488e-05,2]
[420608210,1776324632662,-2473.0,9.488e-05,2]
[420608211,1776324632672,-2021.477,9.491e-05,2]
[420608212,1776324632682,-185.738,9.491e-05,2]
[420608213,1776324632692,-150.0,9.491e-05,2]
[420608214,1776324632701,-22131.0112,9.492e-05,2]
[420608215,1776324632711,-2500.0,9.492e-05,2]
[420608216,1776324632720,-150.0,9.51e-05,2]
[420608217,1776324632730,-500.0,9.531e-05,2]
[420608218,1776324632739,-15143.2,9.562e-05,2]
[420608219,1776324632749,-9552.16786547,9.586e-05,2]
[420608220,1776324632759,-174.61919142,9.586e-05,2]
[420608221,1776324632768,-412.11643922,9.586e-05,2]
[420608222,1776324632778,-151.0,9.586e-05,2]
[420608223,1776324632787,-500.0,9.586e-05,2]
[420608224,1776324632796,-151.0,9.589e-05,2]
[420608225,1776324632806,-500.0,9.591e-05,2]
[420608226,1776324632816,-223.86,9.591e-05,2]
[420608227,1776324632825,-266.8965379,9.591e-05,2]
[420608228,1776324632834,-500.0,9.591e-05,2]
[420608229,1776324632844,-500.0,9.591e-05,2]
[420608231,1776324632853,-500.0,9.591e-05,2]
[420608233,1776324632862,-455.63048566,9.591e-05,2]
[420608234,1776324632872,-500.0,9.591e-05,2]
[420608235,1776324632881,-500.0,9.591e-05,2]
[420608236,1776324632891,-500.0,9.591e-05,2]
[420608237,1776324632900,-616.1202397,9.591e-05,2]
[420608238,1776324632910,-500.0,9.591e-05,2]
[420608239,1776324632920,-500.0,9.591e-05,2]
[420608240,1776324632929,-500.0,9.591e-05,2]
[420608241,1776324632938,-500.0,9.591e-05,2]
[420608242,1776324632948,-500.0,9.591e-05,2]
[420608243,1776324632957,-500.0,9.591e-05,2]
[420608244,1776324632967,-418.71665123,9.591e-05,2]
[420608245,1776324632976,-207.16483834,9.591e-05,2]
[420608246,1776324632985,-292.37216748,9.591e-05,2]
[420608247,1776324632998,-450.95137702,9.591e-05,2]
[420608248,1776324633007,-500.0,9.591e-05,2]
[420608249,1776324633016,-500.0,9.591e-05,2]
[420608250,1776324633025,-500.0,9.591e-05,2]
[420608251,1776324633035,-500.0,9.591e-05,2]
[420608252,1776324633045,-500.0,9.591e-05,2]
[420608253,1776324633054,-500.0,9.591e-05,2]
[420608254,1776324633064,-500.0,9.591e-05,2]
[420608255,1776324633074,-500.0,9.591e-05,2]
[420608256,1776324633083,-500.0,9.591e-05,2]
[420608257,1776324633092,-500.0,9.591e-05,2]
[420608258,1776324633102,-500.0,9.591e-05,2]
[420608259,1776324633112,-500.0,9.591e-05,2]
[420608260,1776324633122,-500.0,9.591e-05,2]
[420608261,1776324633132,-500.0,9.591e-05,2]
[420608262,1776324633141,-500.0,9.591e-05,2]
[420608263,1776324633151,-500.0,9.591e-05,2]
[420608264,1776324633160,-500.0,9.591e-05,2]
[420608265,1776324633174,-500.0,9.591e-05,2]
[420608266,1776324633184,-500.0,9.591e-05,2]
[420608267,1776324633194,-500.0,9.591e-05,2]
[420608268,1776324633204,-500.0,9.591e-05,2]
[420608269,1776324633213,-500.0,9.591e-05,2]
[420608270,1776324633223,-587.51025261,9.591e-05,2]
[420608271,1776324633232,-500.0,9.591e-05,2]
[420608272,1776324633241,-500.0,9.591e-05,2]
[420608273,1776324633251,-500.0,9.591e-05,2]
[420608274,1776324633260,-500.0,9.591e-05,2]
[420608275,1776324633269,-500.0,9.591e-05,2]
[420608276,1776324633278,-500.0,9.591e-05,2]
[420608277,1776324633287,-550.0,9.591e-05,2]
[420608278,1776324633297,-500.0,9.591e-05,2]
[420608279,1776324633306,-500.0,9.591e-05,2]
[420608280,1776324633316,-500.0,9.591e-05,2]
[420608281,1776324633326,-500.0,9.591e-05,2]
[420608282,1776324633335,-500.0,9.591e-05,2]
[420608283,1776324633345,-500.0,9.591e-05,2]
[420608284,1776324633354,-9905.5980765,9.641e-05,2]
[420608285,1776324633364,-151.0,9.641e-05,2]
[420608286,1776324633374,-500.0,9.641e-05,2]
[420608287,1776324633383,-420.0,9.655e-05,2]
[420608288,1776324633393,-5447.81,9.67e-05,2]
[420608289,1776324633402,-299.99,9.67e-05,2]
[420608290,1776324633412,-9999.99,9.67e-05,2]
[420608291,1776324633421,-1482.74,9.67e-05,2]
[420608292,1776324633430,-3244.24,9.67e-05,2]
[420608293,1776324633439,-2246.1,9.67e-05,2]
[420608294,1776324633448,-150.99,9.67e-05,2]
[420608295,1776324633457,-500.0,9.671e-05,2]
[420608296,1776324633467,-1305.19297468,9.681e-05,2]
[420608297,1776324633476,-4032.13834563,9.681e-05,2]
[420608298,1776324633485,-10272.10520533,9.696e-05,2]
[420608299,1776324633495,-151.0,9.696e-05,2]
[420608300,1776324633504,-500.0,9.696e-05,2]
[420608301,1776324633513,-150.0,9.7e-05,2]
[420608302,1776324633523,-153.79322456,9.7e-05,2]
[420608303,1776324633532,-1008.0,9.742e-05,3]
[420608304,1776324633541,-10652.17309792,9.751e-05,2]
[420608305,1776324633550,-151.0,9.751e-05,2]
[420608306,1776324633559,-500.0,9.751e-05,2]
[420608307,1776324633568,-150.0,9.753e-05,2]
[420608308,1776324633578,-150.0,9.753e-05,2]
[420608309,1776324633587,-150.0,9.753e-05,2]
[420608310,1776324633597,-150.0,9.753e-05,2]
[420608311,1776324633606,-163.94277606,9.763e-05,2]
[420608312,1776324633616,-500.0,9.775e-05,2]
[420608313,1776324633626,-500.0,9.775e-05,2]
[420608314,1776324633635,-500.0,9.775e-05,2]
[420608315,1776324633644,-500.0,9.775e-05,2]
[420608316,1776324633654,-500.0,9.775e-05,2]
[420608317,1776324633663,-500.0,9.775e-05,2]
[420608318,1776324633672,-500.0,9.775e-05,2]
[420608319,1776324633681,-500.0,9.775e-05,2]
[420608320,1776324633691,-500.0,9.775e-05,2]
[420608321,1776324633700,-500.0,9.775e-05,2]
[420608322,1776324633709,-500.0,9.775e-05,2]
[420608323,1776324633718,-721.12765535,9.775e-05,2]
[420608324,1776324633728,-1428.38747117,9.775e-05,2]
[420608325,1776324633737,-200.0,9.775e-05,2]
[420608326,1776324633746,-743.50770149,9.775e-05,2]
[420608327,1776324633755,-200.0,9.775e-05,2]
[420608328,1776324633764,-279.9045709,9.775e-05,2]
[420608329,1776324633774,-500.0,9.78e-05,2]
[420608330,1776324633783,-500.0,9.78e-05,2]
[420608331,1776324633792,-630.34645012,9.78e-05,2]
[420608332,1776324633801,-290.69456362,9.78e-05,2]
[420608333,1776324633811,-500.0,9.78e-05,2]
[420608334,1776324633821,-500.0,9.78e-05,2]
[420608335,1776324633831,-500.0,9.78e-05,2]
[420608336,1776324633845,-500.0,9.78e-05,2]
[420608337,1776324633855,-572.87698387,9.78e-05,2]
[420608338,1776324633864,-500.0,9.78e-05,2]
[420608339,1776324633874,-366.97789752,9.78e-05,2]
[420608340,1776324633883,-888278.98430573,9.781e-05,2]
[420608341,1776324633897,-6535.04375598,9.781e-05,2]
[420608342,1776324633909,-30895.08233118,9.781e-05,2]
[420608343,1776324633937,-1850.0,9.781e-05,2]
[420608344,1776324633949,-1283.64,9.781e-05,2]
[420608345,1776324633961,-867.29465335,9.781e-05,2]
[420608346,1776324633996,-380.68182096,9.781e-05,2]
[420608347,1776324639712,-4144.1699421,9.392e-05,2]
[420608348,1776324639965,-1478.63014659,9.392e-05,2]
[420608349,1776324639977,-11556.63275172,9.392e-05,2]
[420608350,1776324640018,-269.21200311,9.392e-05,2]
[420608362,1776324640933,-1124.28992766,9.392e-05,2]
[420608363,1776324641202,-317.41338546,9.392e-05,2]
[420608379,1776324643494,-536.16821049,9.392e-05,2]
[420608394,1776324668563,8625.01,7.945e-05,2]
[420608397,1776324785442,857.0,7.945e-05,3]
[420608398,1776324844919,518.0,7.945e-05,3]
[420608399,1776324844944,296.0,7.945e-05,3]
[420608400,1776324911282,773.0,7.945e-05,3]
[420608401,1776324911688,157.0,7.945e-05,3]
[420608402,1776324969067,735.0,7.945e-05,3]
[420608403,1776324994226,10000.0,0.000165,30]
[420608404,1776325004505,10000.0,0.000165,30]
[420608405,1776325014985,10000.0,0.000165,30]
[420608406,1776325028475,10000.0,0.000165,30]
[420608407,1776325044631,8077.0,0.000165,30]
[420608408,1776325087326,698.0,7.945e-05,3]
[420608409,1776325204437,315.0,3.005e-05,2]
[420608410,1776325204717,315.0,4.287e-05,3]
[420608411,1776325204992,315.0,5.571e-05,3]
[420608412,1776325205296,315.0,6.855e-05,3]
[420608413,1776325205554,315.0,8.139e-05,3]
[420608414,1776325212190,663.0,7.945e-05,3]
[420608415,1776325212242,158.0,7.945e-05,3]
[420608416,1776325326685,630.0,7.945e-05,3]
[420608417,1776325389443,598.0,7.945e-05,3]
[420608419,1776325471680,569.0,7.945e-05,3]
[420608420,1776325507770,158.0,7.945e-05,3]
[420608421,1776325507935,540.0,7.945e-05,3]
[420608422,1776325512649,-150.0,8.433e-05,2]
[420608423,1776325512680,-150.0,8.433e-05,2]
[420608424,1776325512712,-150.0,8.433e-05,2]
[420608425,1776325521261,150.0,8.433e-05,2]
[420608426,1776325521939,150.0,8.433e-05,2]
[420608427,1776325522111,150.0,8.433e-05,2]
[420608428,1776325527282,150.0,8.433e-05,2]
[420608429,1776325527710,-150.0,8.444e-05,2]
[420608430,1776325534084,150.0,8.433e-05,2]
[420608431,1776325534183,150.0,8.433e-05,2]
[420608432,1776325536718,150.0,8.4e-05,2]
[420608433,1776325537439,150.0,8.433e-05,2]
[420608434,1776325537646,150.0,8.433e-05,2]
[420608435,1776325541773,150.0,8.433e-05,2]
[420608436,1776325542877,-150.0,8.448e-05,2]
[420608437,1776325547581,150.0,8.433e-05,2]
[420608438,1776325563493,-150.0,8.448e-05,2]
[420608439,1776325567617,513.0,7.945e-05,3]
[420608440,1776325585606,-150.0,8.451e-05,2]
[420608441,1776325600382,-150.0,8.452e-05,2]
[420608442,1776325607628,150.0,8.4e-05,2]
[420608443,1776325611823,999.999999,8.4e-05,2]
[420608444,1776325617428,1804.425907,8.178e-05,2]
[420608445,1776325627685,487.0,7.945e-05,3]
[420608446,1776325678291,150.0,8.4e-05,2]
[420608447,1776325688028,634.98340203,8.455e-05,2]
[420608448,1776325716154,-722.20614992,8.455e-05,2]
[420608450,1776325747617,463.0,7.945e-05,3]
[420608451,1776325762737,-150.0,8.4e-05,2]
[420608452,1776325811977,158.0,7.945e-05,3]
[420608453,1776325813121,440.0,7.945e-05,3]
[420608454,1776325831863,-150.0,8.4e-05,2]
[420608455,1776325831873,-150.0,8.455e-05,2]
[420608456,1776325831882,-150.0,8.462e-05,2]
[420608457,1776325831891,-150.0,8.463e-05,2]
[420608458,1776325831900,-150.0,8.467e-05,2]
[420608459,1776325831909,-150.0,8.47e-05,2]
[420608460,1776325831919,-150.0,8.47e-05,2]
[420608461,1776325831928,-150.0,8.472e-05,2]
[420608462,1776325831937,-150.0,8.472e-05,2]
[420608463,1776325831947,-150.0,8.477e-05,2]
[420608464,1776325831956,-150.0,8.477e-05,2]
[420608465,1776325831965,-150.0,8.478e-05,2]
[420608467,1776325831974,-150.0,8.488e-05,2]
[420608468,1776325831984,-150.0,8.489e-05,2]
[420608469,1776325831993,-150.0,8.489e-05,2]
[420608470,1776325832002,-150.0,8.491e-05,2]
[420608471,1776325832011,-150.0,8.492e-05,2]
[420608472,1776325832020,-150.0,8.495e-05,2]
[420608473,1776325832030,-150.0,8.501e-05,2]
[420608474,1776325832039,-150.0,8.506e-05,2]
[420608475,1776325832048,-150.0,8.506e-05,2]
[420608476,1776325832057,-150.0,8.507e-05,2]
[420608477,1776325832066,-150.0,8.508e-05,2]
[420608478,1776325832076,-150.0,8.511e-05,2]
[420608479,1776325832085,-150.0,8.511e-05,2]
[420608480,1776325832094,-150.0,8.512e-05,2]
[420608481,1776325832103,-150.0,8.518e-05,2]
[420608482,1776325832112,-150.0,8.521e-05,2]
[420608483,1776325832121,-150.0,8.521e-05,2]
[420608484,1776325832130,-635.264071,8.521e-05,2]
[420608485,1776325832139,-636.496629,8.521e-05,2]
[420608486,1776325832162,-342.886301,8.521e-05,2]
[420608487,1776325832171,-150.0,8.522e-05,2]
[420608488,1776325832180,-1024.24638607,8.522e-05,2]
[420608489,1776325834219,298.80300421,8.3e-05,2]
[420608492,1776325837738,-979.47501245,8.522e-05,2]
[420608493,1776325837845,-1569.58143368,8.522e-05,2]
[420608494,1776325837900,-1155.05164175,8.522e-05,2]
[420608495,1776325837960,-417.87925905,8.522e-05,2]
[420608496,1776325837971,-140.56888095,8.523e-05,2]
[420608497,1776325838062,-9.43111905,8.523e-05,2]
[420608498,1776325838073,-150.0,8.525e-05,2]
[420608499,1776325838084,-150.0,8.527e-05,2]
[420608500,1776325838093,-1621.159161,8.531e-05,2]
[420608501,1776325838106,-150.0,8.534e-05,2]
[420608502,1776325838116,-150.0,8.535e-05,2]
[420608503,1776325838127,-150.0,8.537e-05,2]
[420608504,1776325838137,-150.0,8.543e-05,2]
[420608505,1776325838151,-150.0,8.545e-05,2]
[420608506,1776325838163,-150.0,8.546e-05,2]
[420608507,1776325838173,-150.0,8.55e-05,2]
[420608508,1776325838184,-150.0,8.55e-05,2]
[420608509,1776325838194,-150.0,8.55e-05,2]
[420608510,1776325838205,-150.0,8.552e-05,2]
[420608511,1776325838216,-150.0,8.557e-05,2]
[420608512,1776325838226,-150.0,8.558e-05,2]
[420608514,1776325838236,-247.78,8.561e-05,2]
[420608516,1776325838246,-150.0,8.561e-05,2]
[420608519,1776325838257,-150.0,8.564e-05,2]
[420608521,1776325838267,-150.0,8.565e-05,2]
[420608523,1776325838277,-500.0,8.565e-05,2]
[420608525,1776325838287,-150.0,8.567e-05,2]
[420608527,1776325838297,-150.0,8.567e-05,2]
[420608529,1776325838307,-150.0,8.568e-05,2]
[420608531,1776325838317,-150.0,8.579e-05,2]
[420608533,1776325838328,-150.0,8.58e-05,2]
[420608535,1776325838338,-150.0,8.58e-05,2]
[420608537,1776325838348,-150.0,8.582e-05,2]
[420608539,1776325838358,-150.0,8.583e-05,2]
[420608542,1776325838368,-150.0,8.589e-05,2]
[420608544,1776325838378,-150.0,8.589e-05,2]
[420608546,1776325838387,-150.0,8.591e-05,2]
[420608548,1776325838397,-150.0,8.594e-05,2]
[420608550,1776325838407,-150.0,8.596e-05,2]
[420608552,1776325838416,-150.0,8.598e-05,2]
[420608554,1776325838427,-150.0,8.602e-05,2]
[420608556,1776325838437,-150.0,8.602e-05,2]
[420608558,1776325838447,-150.0,8.603e-05,2]
[420608560,1776325838458,-150.0,8.609e-05,2]
[420608562,1776325838468,-150.0,8.611e-05,2]
[420608564,1776325838478,-150.0,8.614e-05,2]
[420608567,1776325838488,-150.0,8.617e-05,2]
[420608570,1776325838498,-150.0,8.62e-05,2]
[420608574,1776325838508,-150.0,8.62e-05,2]